bitfinex-derivatives/quotes_ETHF0:USTF0_20250830
["timestamp","ask_amount","ask_price","bid_price","bid_amount"]
[1756534439904,0.5357,4379.6,4379.5,3.4448]
[1756534441702,0.5357,4379.6,4379.5,3.2078]
[1756534441908,0.5357,4379.6,4379.5,3.4448]
[1756534443513,3.2078,4381.2,4379.5,3.4448]
[1756534443813,0.3251,4381.0,4380.0,3.2078]
[1756534444008,0.3251,4380.8,4380.1,0.237]
[1756534444202,0.3251,4380.6,4380.1,0.237]
[1756534444406,0.5357,4380.4,4380.1,0.237]
[1756534444606,0.73700495,4380.3,4380.1,0.237]
[1756534444806,0.20130495,4380.2,4380.1,0.237]
[1756534446115,0.52639487,4380.2,4380.1,0.237]
[1756534447313,0.20129487,4380.2,4380.1,0.237]
[1756534447612,0.49299487,4380.2,4380.1,0.237]
[1756534447815,0.20129487,4380.2,4380.1,0.237]
[1756534448113,0.41389487,4380.2,4380.1,0.237]
[1756534448513,0.70559487,4380.2,4380.1,0.237]
[1756534449117,0.70559487,4380.2,4380.0,3.2078]
[1756534449414,0.49299487,4380.1,4380.0,3.2078]
[1756534449607,0.2917,4380.1,4380.0,3.4448]
[1756534449802,0.49303119,4380.1,4380.0,3.4448]
[1756534450213,0.4930378,4380.1,4380.0,3.4448]
[1756534450614,0.49304428,4380.1,4380.0,3.2078]
[1756534450814,0.49304428,4380.1,4380.0,3.4448]
[1756534451015,0.70564428,4380.1,4380.0,3.4448]
[1756534455323,0.70564428,4380.1,4380.0,3.2078]
[1756534455517,0.70564428,4380.1,4380.0,3.4448]
[1756534455717,0.49304428,4380.1,4380.0,3.4448]
[1756534455915,0.20134428,4380.1,4380.0,3.4448]
[1756534456421,0.20134428,4380.1,4380.0,3.2078]
[1756534456618,0.20134428,4380.1,4380.0,3.4448]
[1756534458325,0.41394428,4380.1,4380.0,3.2078]
[1756534458524,0.41394428,4380.1,4380.0,3.4448]
[1756534459009,0.70564428,4380.1,4380.0,3.2078]
[1756534459414,0.70564428,4380.1,4380.0,3.4448]
[1756534460319,0.49314012,4380.1,4380.0,3.4448]
[1756534460523,0.20143047,4380.1,4380.0,3.4448]
[1756534461219,0.49313047,4380.1,4380.0,3.4448]
[1756534461420,0.70573047,4380.1,4380.0,3.4448]
[1756534461922,0.70573047,4380.1,4380.0,3.2078]
[1756534462123,0.70573047,4380.1,4380.0,3.4448]
[1756534463120,0.70573047,4380.1,4380.0,3.2078]
[1756534463423,0.41403047,4380.1,4380.0,0.237]
[1756534463723,0.70573047,4380.1,4380.0,0.237]
[1756534464019,0.2126,4379.6,4379.5,3.2078]
[1756534464327,0.70573047,4379.6,4379.5,3.4448]
[1756534465727,0.70573047,4379.6,4379.5,3.4438]
[1756534466020,0.49313047,4379.6,4379.5,3.4438]
[1756534466323,0.20143047,4379.6,4379.5,3.4438]
[1756534466915,0.2917,4379.9,4379.5,3.4438]
[1756534467120,0.2917,4379.7,4379.5,3.4438]
[1756534467315,0.20143047,4379.6,4379.5,3.4438]
[1756534467526,0.5043,4380.6,4379.5,3.4438]
[1756534467824,0.2917,4380.4,4380.1,3.2078]
[1756534468026,0.49321296,4380.3,4380.2,0.236]
[1756534469318,0.70581296,4380.3,4380.2,0.236]
[1756534470720,0.41411296,4380.3,4380.1,3.2078]
[1756534470927,0.70580404,4380.2,4380.1,3.2078]
[1756534471122,0.70580404,4380.2,4380.1,3.4438]
[1756534471727,0.70580404,4380.2,4380.1,3.2078]
[1756534471926,0.70580404,4380.2,4380.1,3.4438]
[1756534472226,0.70580404,4380.2,4380.1,0.236]
[1756534472525,0.41410404,4380.2,4380.1,0.236]
[1756534472824,0.2917,4380.1,4379.6,3.2078]
[1756534473025,0.5043,4379.7,4379.3,32.878]
[1756534473226,0.2917,4379.5,4379.4,0.236]
[1756534473824,0.49325423,4379.5,4379.4,0.236]
[1756534474124,0.20154834,4379.5,4379.4,0.236]
[1756534474321,0.70584834,4379.5,4379.4,0.236]
[1756534474520,0.5043,4379.5,4379.4,0.236]
[1756534474720,0.70584916,4379.5,4379.4,0.236]
[1756534475227,0.2917,4379.5,4379.4,0.236]
[1756534475528,0.49323199,4379.5,4379.4,0.236]
[1756534475720,0.5043,4379.5,4379.4,0.236]
[1756534475923,0.70583134,4379.5,4379.4,0.236]
[1756534476122,0.2917,4379.4,4379.3,36.0858]
[1756534476327,0.5043,4378.9,4378.8,3.2078]
[1756534476622,0.70583134,4378.9,4378.8,3.4438]
[1756534476929,0.70583134,4378.9,4378.8,0.236]
[1756534477716,0.70583134,4378.9,4378.2,3.2078]
[1756534477717,0.3048,4378.8,4378.2,3.2078]
[1756534477926,0.4984,4378.4,4378.3,0.236]
[1756534478123,0.1936,4378.4,4378.2,3.2078]
[1756534478330,0.4984,4377.8,4377.7,3.2078]
[1756534478730,0.4984,4377.8,4377.7,3.4438]
[1756534479629,0.4984,4377.8,4377.7,3.2078]
[1756534479828,0.4984,4377.8,4377.7,3.4438]
[1756534481018,0.70133981,4377.8,4377.7,3.4438]
[1756534481223,4.70133981,4377.8,4377.7,0.236]
[1756534481433,0.4984,4377.8,4377.7,0.236]
[1756534483623,0.1936,4377.8,4377.7,0.236]
[1756534483822,0.4984,4377.8,4377.7,0.236]
[1756534484925,3.2078,4378.4,4377.1,3.2078]
[1756534484926,0.4984,4377.2,4377.1,3.2078]
[1756534485125,0.4984,4377.2,4377.1,3.4438]
[1756534486533,0.4984,4377.2,4377.1,0.236]
[1756534487329,0.4984,4376.8,4376.7,32.881]
[1756534487633,0.4984,4376.8,4376.7,33.117]
[1756534488230,0.4984,4376.8,4376.7,32.881]
[1756534488427,0.4984,4376.8,4376.7,33.117]
[1756534489934,0.3048,4376.8,4376.7,33.117]
[1756534490538,0.3048,4377.3,4376.7,33.117]
[1756534491037,0.3048,4377.3,4377.0,3.2078]
[1756534491338,0.3048,4377.8,4377.1,0.236]
[1756534491632,0.1936,4377.2,4377.1,0.236]
[1756534491828,0.4984,4377.2,4377.1,0.236]
[1756534492034,3.2078,4377.9,4377.1,0.236]
[1756534492233,0.50684097,4377.8,4377.1,0.236]
[1756534492428,3.2078,4377.9,4377.1,0.236]
[1756534492429,0.3048,4377.6,4377.1,0.236]
[1756534492635,0.3048,4377.4,4377.1,0.236]
[1756534492834,3.2078,4377.9,4377.1,0.236]
[1756534492835,0.3048,4377.3,4377.1,0.236]
[1756534493137,0.4984,4377.3,4377.2,0.236]
[1756534494235,0.1936,4377.3,4377.2,0.236]
[1756534494438,0.4984,4377.3,4377.2,0.236]
[1756534494741,0.4984,4376.8,4376.7,32.881]
[1756534494942,0.4984,4376.8,4376.7,33.117]
[1756534496441,3.2078,4377.9,4376.7,33.117]
[1756534496745,0.3048,4377.7,4376.7,33.117]
[1756534497040,0.3048,4377.8,4376.7,33.117]
[1756534497242,3.2078,4377.9,4376.7,33.117]
[1756534497443,0.20198466,4377.8,4376.7,33.117]
[1756534497641,0.1936,4377.6,4377.2,3.2078]
[1756534497833,0.3048,4377.4,4377.3,0.236]
[1756534498940,0.4984,4377.4,4377.3,0.236]
[1756534499239,0.3048,4377.3,4377.2,3.2078]
[1756534499445,0.4984,4377.8,4377.2,3.4438]
[1756534500243,0.1936,4377.8,4377.2,3.4438]
[1756534500437,0.3048,4377.6,4377.2,3.2078]
[1756534500638,0.3048,4377.3,4377.2,3.2078]
[1756534500840,0.4984,4377.3,4377.2,3.4438]
[1756534502442,0.1936,4377.7,4377.2,3.4438]
[1756534502638,0.40673611,4377.6,4377.2,3.4438]
[1756534502842,0.21313611,4377.5,4377.2,3.4438]
[1756534503044,0.3048,4377.7,4377.2,3.4438]
[1756534503345,0.21312862,4377.6,4377.2,3.4438]
[1756534503550,0.21312862,4377.5,4377.2,3.4438]
[1756534504849,0.21312862,4377.4,4377.2,3.4438]
[1756534505147,0.4984,4378.9,4377.3,0.22839]
[1756534505346,0.3048,4378.7,4378.0,3.2078]
[1756534505552,0.51821579,4378.6,4378.1,0.236]
[1756534505742,0.40722662,4378.5,4378.1,0.236]
[1756534505937,0.3048,4378.3,4378.0,3.2078]
[1756534506143,0.51842662,4378.2,4378.1,0.236]
[1756534506343,0.21362662,4378.2,4378.0,3.2078]
[1756534506543,0.3048,4378.9,4378.1,0.236]
[1756534506744,0.21371979,4378.8,4378.1,0.236]
[1756534506946,0.1918,4378.6,4378.1,0.236]
[1756534507139,0.2863,4378.4,4378.1,0.236]
[1756534507347,0.236,4379.7,4378.1,0.236]
[1756534507348,0.21371979,4378.3,4378.1,0.236]
[1756534507541,0.21371979,4378.2,4378.1,0.236]
[1756534507741,0.2863,4379.1,4378.2,0.22837]
[1756534507947,0.2137371,4379.0,4378.8,3.2078]
[1756534508148,3.2078,4380.2,4378.8,3.2078]
[1756534508348,0.49999556,4380.1,4378.9,0.46434]
[1756534508650,0.2863,4379.6,4379.5,3.2078]
[1756534508955,0.21369556,4379.6,4379.5,3.4438]
[1756534509341,0.69179556,4379.6,4379.5,3.4438]
[1756534509552,0.69179556,4379.6,4379.5,0.236]
[1756534510547,0.40549556,4379.6,4379.5,0.236]
[1756534511242,0.69179556,4379.6,4379.5,0.236]
[1756534511442,0.40549556,4379.6,4379.1,0.10959048]
[1756534511651,0.2863,4379.4,4379.2,0.236]
[1756534511846,0.2863,4379.2,4379.1,0.10925061]
[1756534512046,0.2863,4379.2,4379.1,0.236]
[1756534512549,3.2078,4380.8,4379.1,4.46435]
[1756534512854,0.2863,4380.6,4380.4,3.2078]
[1756534513061,0.4781,4380.6,4380.5,0.236]
[1756534513253,0.69105736,4380.6,4380.5,0.236]
[1756534513453,0.40475736,4380.6,4380.5,0.236]
[1756534514056,0.69105736,4380.6,4380.5,0.236]
[1756534514958,0.4781,4380.6,4379.9,3.2078]
[1756534515159,0.4781,4380.6,4380.0,0.236]
[1756534515554,0.4781,4380.6,4379.9,3.2078]
[1756534515757,0.4781,4380.6,4380.0,0.236]
[1756534517353,3.2078,4381.4,4380.1,0.236]
[1756534517556,0.2863,4381.2,4380.1,0.236]
[1756534517750,0.21243695,4381.1,4380.1,0.236]
[1756534517957,0.1918,4380.3,4380.2,0.236]
[1756534518259,0.2863,4380.2,4379.9,36.0978]
[1756534518561,0.2863,4380.2,4380.0,0.236]
[1756534519169,0.2863,4381.3,4380.0,4.236]
[1756534519361,0.1918,4380.9,4380.8,3.2078]
[1756534519557,0.1918,4381.3,4380.8,3.4438]
[1756534519758,0.1918,4381.1,4380.8,3.4438]
[1756534519958,3.2078,4382.0,4380.8,3.4438]
[1756534520163,0.2863,4381.7,4380.8,3.4438]
[1756534520352,0.4781,4381.7,4381.6,3.2078]
[1756534520564,0.2863,4382.6,4381.6,3.4438]
[1756534520758,0.1918,4381.7,4381.1,3.2078]
[1756534521064,0.2863,4382.6,4381.2,3.4438]
[1756534521267,0.4781,4381.8,4381.7,3.2078]
[1756534521466,0.4781,4381.8,4381.7,3.4438]
[1756534521663,0.4781,4381.8,4381.7,3.2078]
[1756534521963,0.1918,4381.8,4381.7,0.236]
[1756534522164,0.4781,4381.8,4381.7,3.4438]
[1756534523661,0.2863,4381.8,4381.7,3.4438]
[1756534523966,3.2078,4382.7,4381.7,3.4438]
[1756534524166,0.21188757,4382.6,4381.7,3.4438]
[1756534524364,0.2863,4382.4,4381.7,3.4438]
[1756534524563,0.2863,4382.6,4381.7,3.4438]
[1756534524766,0.21184924,4382.5,4381.7,3.4438]
[1756534525062,3.2078,4382.7,4381.7,3.4438]
[1756534525268,0.2118491,4382.6,4381.7,3.4438]
[1756534525465,0.2118491,4382.5,4381.7,3.4438]
[1756534525767,0.2863,4382.6,4381.7,3.4438]
[1756534525962,0.49814502,4382.5,4381.7,3.4438]
[1756534526160,0.2863,4382.6,4381.7,3.4438]
[1756534526358,0.2863,4382.4,4381.7,3.4438]
[1756534526558,3.2078,4382.7,4381.7,3.4438]
[1756534526762,0.2863,4382.5,4381.7,3.4438]
[1756534526962,0.1918,4381.7,4381.2,3.31886155]
[1756534527268,0.2863,4381.5,4381.3,0.236]
[1756534527566,0.2863,4382.6,4381.3,0.236]
[1756534527767,0.2863,4382.4,4381.3,0.236]
[1756534528372,0.2863,4382.2,4381.3,0.236]
[1756534528673,0.1918,4381.8,4381.7,3.2078]
[1756534528974,0.4781,4381.8,4381.7,3.4438]
[1756534529269,0.4781,4381.8,4381.7,3.2078]
[1756534529475,0.1918,4381.3,4381.2,3.2078]
[1756534529769,0.4781,4381.3,4381.2,3.4438]
[1756534531074,0.4781,4381.3,4381.2,3.2078]
[1756534531367,0.4781,4381.3,4381.2,3.4438]
[1756534531769,0.2863,4381.3,4381.2,3.4438]
[1756534531969,0.2863,4381.3,4378.8,1.02756]
[1756534531970,0.4781,4380.3,4380.2,3.2078]
[1756534532171,0.4781,4380.3,4380.2,3.4438]
[1756534532973,0.1918,4380.3,4379.5,3.2078]
[1756534533276,0.4781,4379.6,4379.5,3.2078]
[1756534533476,0.4781,4379.6,4379.5,3.4438]
[1756534534174,0.2863,4379.6,4379.5,3.4438]
[1756534534876,0.4781,4379.6,4379.5,3.4438]
[1756534535077,0.4781,4379.6,4379.5,3.2078]
[1756534535273,0.4781,4379.6,4379.5,3.4438]
[1756534536371,0.68748744,4379.6,4379.5,3.2078]
[1756534536572,0.68748744,4379.6,4379.5,3.4438]
[1756534536772,0.68749962,4379.6,4379.5,3.4438]
[1756534537874,0.68749962,4379.6,4379.5,3.2078]
[1756534538082,0.40119962,4379.6,4379.5,0.236]
[1756534538380,4.40119962,4379.6,4378.8,36.0808]
[1756534538678,0.5044,4378.9,4378.8,32.873]
[1756534538877,0.5044,4378.9,4378.8,33.109]
[1756534540083,0.71390141,4378.9,4378.8,33.109]
[1756534541376,0.306,4379.9,4378.8,36.3168]
[1756534541577,0.306,4379.7,4378.8,36.3168]
[1756534541778,0.306,4379.5,4378.8,36.3168]
[1756534541980,0.5044,4378.9,4378.8,33.109]
[1756534542576,0.306,4378.9,4378.8,33.109]
[1756534544777,0.306,4378.9,4378.8,32.873]
[1756534544976,0.306,4378.9,4378.8,33.109]
[1756534545179,0.51529055,4378.9,4378.8,32.873]
[1756534545478,0.51529055,4378.9,4378.8,33.109]
[1756534545674,4.51529055,4378.9,4378.8,32.873]
[1756534545879,0.306,4378.8,4377.7,3.2078]
[1756534546081,0.20929055,4378.7,4377.7,3.2078]
[1756534546280,0.306,4378.5,4377.8,0.236]
[1756534546480,0.306,4378.3,4377.8,0.236]
[1756534546682,0.1984,4378.2,4377.8,0.236]
[1756534546879,0.1984,4378.1,4377.8,0.236]
[1756534547081,0.306,4377.9,4377.7,3.2078]
[1756534547384,0.5044,4377.8,4377.7,3.2078]
[1756534547981,0.5044,4377.8,4377.7,3.4438]
[1756534548386,0.5044,4377.8,4377.7,0.236]
[1756534549087,0.1984,4377.8,4377.7,0.236]
[1756534549682,0.5044,4377.8,4377.7,0.236]
[1756534552490,0.5044,4377.5,4377.4,32.883]
[1756534552790,0.5044,4377.5,4377.4,33.119]
[1756534553378,0.5044,4377.5,4377.4,32.883]
[1756534553584,0.5044,4377.5,4377.4,33.119]
[1756534557392,0.5044,4377.5,4377.4,32.883]
[1756534557594,0.5044,4377.5,4377.4,33.119]
[1756534559497,0.71372257,4377.5,4377.4,32.883]
[1756534559698,4.71372257,4377.5,4377.4,33.119]
[1756534559893,0.1984,4376.6,4376.5,3.2078]
[1756534560086,0.5044,4376.6,4376.5,3.4438]
[1756534560291,3.2078,4377.5,4376.5,3.4438]
[1756534560492,0.20223897,4377.4,4376.5,3.4438]
[1756534560686,0.20223897,4377.3,4376.5,3.4438]
[1756534560887,0.306,4377.1,4376.5,3.4438]
[1756534561092,0.1984,4376.6,4376.5,3.2078]
[1756534561293,0.5044,4376.6,4376.5,3.2078]
[1756534561495,0.5044,4376.6,4376.5,3.4428]
[1756534561992,0.306,4377.4,4376.5,3.4428]
[1756534562198,0.20236667,4377.3,4376.5,3.4428]
[1756534562397,0.5044,4377.1,4376.5,3.4428]
[1756534562593,0.1984,4376.8,4376.5,3.4428]
[1756534562794,3.2078,4377.5,4376.5,3.4428]
[1756534562999,0.306,4376.6,4376.5,3.4428]
[1756534564095,3.2078,4377.5,4376.5,3.4428]
[1756534564403,0.306,4377.3,4376.5,3.4428]
[1756534564601,0.20231682,4377.2,4376.5,3.4428]
[1756534564802,0.20231682,4377.1,4376.5,3.4428]
[1756534565099,0.20231682,4377.0,4376.5,3.4428]
[1756534565300,0.20231682,4376.9,4376.5,3.4428]
[1756534565501,0.306,4377.3,4376.5,3.4428]
[1756534565696,0.20235839,4377.2,4376.5,3.4428]
[1756534565897,0.20235839,4377.1,4376.5,3.4428]
[1756534566103,0.20235839,4377.0,4376.5,3.4428]
[1756534566298,0.20235839,4376.9,4376.5,3.4428]
[1756534566603,0.20235839,4376.8,4376.5,3.4428]
[1756534566803,0.306,4377.3,4376.5,3.4428]
[1756534567103,0.4905,4377.1,4376.5,3.4428]
[1756534567302,0.20241591,4377.0,4376.5,3.4428]
[1756534567503,0.20247875,4376.9,4376.5,3.2078]
[1756534567702,0.49297875,4376.8,4376.6,0.235]
[1756534567903,0.2905,4376.8,4376.6,0.235]
[1756534568299,0.2,4377.1,4376.6,0.235]
[1756534568503,0.40251632,4377.0,4376.5,3.2078]
[1756534568706,0.2905,4376.8,4376.6,0.235]
[1756534568904,0.20251632,4376.7,4376.6,0.235]
[1756534569106,0.49301632,4376.7,4376.6,0.235]
[1756534570203,3.2078,4377.5,4376.6,0.235]
[1756534570406,1.17255682,4377.4,4376.6,0.235]
[1756534570701,0.4905,4377.2,4376.6,0.235]
[1756534570909,0.2905,4377.0,4376.6,0.235]
[1756534571108,0.20255035,4376.9,4376.6,0.235]
[1756534571608,0.49305035,4376.9,4376.6,0.235]
[1756534571808,0.20255035,4376.8,4376.6,0.235]
[1756534573111,0.49305035,4376.7,4376.6,0.235]
[1756534573711,0.69305035,4376.7,4376.6,0.235]
[1756534576313,0.20255035,4376.7,4376.6,0.235]
[1756534576514,0.69305035,4376.7,4376.0,36.1028]
[1756534576715,0.4905,4376.1,4376.0,36.1028]
[1756534576914,0.4905,4376.1,4376.0,36.3378]
[1756534577820,0.69337787,4376.1,4376.0,36.3378]
[1756534578022,0.69337787,4376.1,4376.0,32.895]
[1756534578318,0.69337024,4376.1,4376.0,32.895]
[1756534578921,0.69337024,4376.1,4376.0,33.13]
[1756534579122,0.69337024,4376.1,4376.0,32.895]
[1756534579328,1.37366938,4376.1,4376.0,33.13]
[1756534580321,0.69337024,4376.1,4376.0,33.13]
[1756534580514,0.69337024,4376.1,4376.0,32.895]
[1756534580723,1.37379944,4376.1,4376.0,33.13]
[1756534581317,0.2,4375.6,4374.9,3.2078]
[1756534581527,0.4905,4375.1,4375.0,0.235]
[1756534581721,0.69330875,4375.1,4375.0,0.235]
[1756534582622,0.69330875,4375.1,4374.9,3.2078]
[1756534582822,0.2,4375.1,4375.0,0.235]
[1756534583317,0.69327222,4375.1,4375.0,0.235]
[1756534584026,0.40277222,4375.1,4374.9,3.2078]
[1756534584221,0.4905,4375.0,4374.9,3.2078]
[1756534584427,0.4905,4375.0,4374.9,3.4428]
[1756534584622,3.2078,4376.4,4374.9,3.4428]
[1756534584822,0.2905,4376.2,4374.9,3.4428]
[1756534585022,0.2905,4376.0,4374.9,3.4428]
[1756534585217,0.2905,4375.8,4374.9,3.4428]
[1756534585416,0.2,4375.6,4374.9,3.4428]
[1756534585621,0.20273407,4375.5,4374.9,3.4428]
[1756534585825,0.20273407,4375.4,4374.9,0.235]
[1756534586126,0.4905,4376.2,4375.3,3.2078]
[1756534586328,1.08239536,4376.1,4375.4,0.235]
[1756534586527,1.37289536,4376.0,4375.4,0.235]
[1756534586730,0.2905,4375.7,4375.4,0.235]
[1756534586928,0.20272293,4375.6,4375.4,0.235]
[1756534588728,0.20281734,4375.5,4375.4,0.235]
[1756534589431,3.2078,4376.4,4374.8,0.03977986]
[1756534589432,0.4905,4375.4,4374.8,3.2078]
[1756534589632,3.2078,4376.4,4374.9,0.46357]
[1756534589831,0.88314786,4376.3,4374.9,0.46357]
[1756534590135,0.4905,4375.4,4375.3,3.2078]
[1756534590335,0.4905,4375.4,4375.3,3.4428]
[1756534590538,0.4905,4375.4,4375.3,3.2078]
[1756534590737,0.69334732,4375.4,4375.3,0.235]
[1756534591337,0.4905,4374.9,4374.8,3.2078]
[1756534591632,0.4905,4374.9,4374.8,3.4428]
[1756534593347,0.2905,4374.9,4374.8,3.4428]
[1756534593551,0.2905,4375.8,4374.8,3.4428]
[1756534593750,0.4905,4374.9,4374.8,3.4428]
[1756534593941,0.4905,4374.9,4374.8,3.2078]
[1756534594346,0.4905,4374.9,4374.8,3.4428]
[1756534594740,0.4905,4374.9,4374.8,3.2078]
[1756534594942,0.4905,4374.9,4374.8,3.4428]
[1756534595151,0.2905,4374.9,4374.8,3.4428]
[1756534595347,0.2905,4375.8,4374.8,3.4428]
[1756534595549,0.49323999,4375.7,4374.8,3.4428]
[1756534595850,0.2905,4375.5,4374.8,3.4428]
[1756534596055,0.2905,4375.3,4374.8,3.4428]
[1756534596353,0.2,4374.9,4374.8,3.2078]
[1756534596546,0.4905,4374.9,4374.8,3.4428]
[1756534597150,0.3025,4375.8,4374.8,3.4428]
[1756534597453,0.20267393,4375.7,4374.8,3.4428]
[1756534597650,0.5022,4374.9,4374.8,3.2078]
[1756534597852,0.5022,4374.9,4374.8,3.4428]
[1756534598247,0.3025,4375.8,4374.8,3.4428]
[1756534598459,0.20264953,4375.7,4374.8,3.4428]
[1756534598649,0.20264953,4375.6,4374.8,3.4428]
[1756534598849,0.20264953,4375.5,4374.8,3.4428]
[1756534599151,0.1997,4375.3,4374.8,3.4428]
[1756534599456,0.20264059,4375.2,4374.8,3.4428]
[1756534599653,0.3025,4375.4,4374.8,3.4428]
[1756534599852,0.20263995,4375.3,4374.8,3.4428]
[1756534600155,0.20263995,4375.2,4374.8,3.4428]
[1756534600357,0.3025,4375.4,4374.8,3.4428]
[1756534600657,0.50517295,4375.3,4374.8,3.4428]
[1756534600853,0.20267295,4375.2,4374.8,3.67134999]
[1756534601062,0.1997,4376.3,4374.8,3.48258036]
[1756534601258,0.70487477,4376.2,4375.6,3.2078]
[1756534601554,0.3025,4376.0,4375.7,0.235]
[1756534601750,0.20267477,4375.9,4375.7,0.235]
[1756534602750,0.3025,4376.3,4375.7,0.235]
[1756534602751,0.20267477,4375.8,4375.7,0.235]
[1756534602956,0.40237477,4375.8,4375.6,3.2078]
[1756534603258,0.5022,4376.3,4375.7,0.235]
[1756534603454,0.50533226,4376.2,4375.7,0.235]
[1756534603658,0.3025,4376.0,4375.7,0.235]
[1756534603859,0.3025,4375.8,4375.7,0.235]
[1756534604059,0.70503226,4375.8,4375.7,0.235]
[1756534607158,0.3025,4375.7,4375.6,3.2078]
[1756534607469,0.70503226,4375.7,4375.6,3.4428]
[1756534608357,0.70531689,4375.7,4375.6,3.4428]
[1756534611459,0.40281689,4375.7,4375.6,0.235]
[1756534611659,0.70531689,4375.7,4375.6,0.235]
[1756534612263,0.3025,4375.6,4374.9,3.2078]
[1756534612463,0.5022,4375.1,4374.9,3.2078]
[1756534612659,0.5022,4375.0,4374.9,3.2078]
[1756534612855,0.5022,4375.0,4374.9,3.4428]
[1756534613064,0.5022,4375.0,4374.9,3.2078]
[1756534613261,0.5022,4375.0,4374.9,3.4428]
[1756534614862,0.70533567,4375.0,4374.9,3.4428]
[1756534616366,0.70533567,4375.0,4374.9,3.2078]
[1756534616768,0.70533567,4375.0,4374.9,3.4428]
[1756534620263,0.20313567,4375.0,4374.9,3.4428]
[1756534620469,0.20311293,4375.0,4374.9,3.4428]
[1756534621461,0.1997,4376.4,4374.9,7.67137]
[1756534621671,0.20311844,4376.3,4376.2,3.2078]
[1756534621969,0.20311844,4376.3,4376.2,3.4428]
[1756534623169,0.50561844,4376.3,4376.2,3.4428]
[1756534623564,0.70531844,4376.3,4376.2,3.4428]
[1756534624664,0.70531844,4376.3,4376.2,3.2078]
[1756534624865,0.70531844,4376.3,4376.2,3.4428]
[1756534625372,0.20311844,4376.3,4376.2,3.4428]
[1756534629067,0.2816,4377.0,4376.2,3.4428]
[1756534629271,0.20300387,4376.9,4376.2,3.4428]
[1756534629472,0.20300387,4376.8,4376.2,36.3548]
[1756534629673,0.20300387,4376.7,4376.2,36.3548]
[1756534629971,0.2029788,4376.6,4376.2,36.3548]
[1756534630175,0.4878,4377.4,4376.3,0.41125]
[1756534630472,0.48445634,4377.3,4377.2,3.2078]
[1756534630774,0.48445634,4377.3,4377.2,3.4428]
[1756534630970,0.20285634,4377.3,4377.2,3.58207168]
[1756534632477,0.69065634,4377.3,4377.2,3.2078]
[1756534632777,0.69065634,4377.3,4377.2,0.235]
[1756534633871,0.40905634,4377.3,4377.2,0.235]
[1756534634272,0.40905634,4377.3,4376.7,3.2078]
[1756534634576,0.4878,4376.8,4376.7,3.2078]
[1756534634977,0.4878,4376.8,4376.7,3.4428]
[1756534635176,0.4878,4376.8,4376.7,3.2078]
[1756534635673,0.4878,4376.8,4376.7,3.4428]
[1756534636177,0.4878,4376.3,4376.2,36.1198]
[1756534636477,0.4878,4376.3,4376.2,36.3548]
[1756534637574,0.4878,4376.3,4376.2,36.1198]
[1756534637779,0.4878,4376.3,4376.2,36.3548]
[1756534639480,0.4878,4376.3,4376.2,36.1198]
[1756534639676,0.4878,4376.3,4376.2,36.3548]
[1756534640179,0.4878,4376.3,4376.2,32.912]
[1756534640374,0.4878,4376.3,4376.2,33.147]
[1756534640375,4.71631,4376.3,4376.2,33.147]
[1756534640583,0.69035675,4376.3,4376.2,33.147]
[1756534640983,0.2816,4376.3,4376.2,33.147]
[1756534641182,0.48417068,4376.3,4376.2,33.147]
[1756534641483,0.2025845,4376.3,4376.2,33.147]
[1756534642086,0.4841845,4376.3,4376.2,33.147]
[1756534643883,0.4841845,4376.3,4376.2,36.3548]
[1756534646173,0.2025845,4376.3,4376.2,36.3548]
[1756534646792,0.2062,4375.8,4375.7,3.2078]
[1756534646980,0.2816,4376.0,4375.8,0.235]
[1756534647182,0.20276075,4375.9,4375.8,0.235]
[1756534647386,0.69056075,4375.9,4375.8,0.235]
[1756534648778,0.69056075,4375.9,4375.7,3.2078]
[1756534648980,0.69056075,4375.8,4375.7,3.2078]
[1756534649682,0.69056075,4375.8,4375.7,3.4428]
[1756534651187,0.69248803,4375.8,4375.7,3.4428]
[1756534652988,0.20468803,4375.8,4375.7,3.4428]
[1756534653188,0.48628803,4375.8,4375.7,3.4428]
[1756534654901,0.20468803,4375.8,4375.7,3.4428]
[1756534657388,0.48598803,4375.8,4375.7,3.4428]
[1756534658090,0.2813,4375.8,4375.7,3.4428]
[1756534658390,0.4857428,4375.8,4375.7,3.4428]
[1756534660187,0.2044428,4375.8,4375.7,3.4428]
[1756534661889,0.4819,4376.5,4375.7,3.4428]
[1756534662090,0.2042846,4376.4,4375.7,3.4428]
[1756534662290,0.2042846,4376.3,4375.7,3.4428]
[1756534662490,0.2042846,4376.2,4375.7,3.4428]
[1756534662690,0.2042846,4376.1,4375.7,3.4428]
[1756534662994,0.2006,4376.4,4375.7,3.4428]
[1756534663188,0.20437847,4376.3,4375.7,3.4428]
[1756534663389,0.20437847,4376.2,4375.7,3.4428]
[1756534663589,0.20437847,4376.1,4375.7,3.4428]
[1756534663792,0.20437847,4376.0,4375.7,3.4428]
[1756534663990,0.2006,4376.4,4375.7,3.4428]
[1756534664191,0.20441193,4376.3,4375.7,3.4428]
[1756534664491,0.20441193,4376.2,4375.7,3.4428]
[1756534664690,0.20441193,4376.1,4375.7,3.4428]
[1756534664891,0.20441193,4376.0,4375.7,3.4428]
[1756534665080,0.2813,4376.9,4375.7,3.4428]
[1756534665286,0.20457901,4376.8,4376.3,3.2078]
[1756534665595,0.2813,4376.6,4376.4,0.235]
[1756534665792,0.48587901,4376.5,4376.4,0.235]
[1756534666187,0.68647901,4376.5,4376.4,0.235]